[Event "December 12 Early 2023"]
[Site "https://www.chess.com"]
[Date "2023.12.12"]
[Round "1"]
[White "Szpar, Milosz"]
[Black "Ljukin, Sergei"]
[Result "1-0"]
[Board "47"]
[TimeControl "180+1"]
[WhiteFideId "1184989"]
[BlackFideId "14102200"]
[WhiteElo "2878"]
[BlackElo "2492"]
[WhiteTeam "POL"]
[BlackTeam "UKR"]
[WhiteClock "0:00:07"]
[BlackClock "0:00:00"]

1. e4 {[%clk 0:03:00]}  e6 {[%clk 0:03:00]} 2. d4 {[%clk 0:03:00]}  d5 {[%clk 0:03:00]} 3. Nc3 {[%clk 0:03:00]}  Bb4 {[%clk 0:03:00]} 4. Ne2 {[%clk 0:02:57]}  Nc6 {[%clk 0:02:59]} 5. a3 {[%clk 0:02:46]}  Ba5 {[%clk 0:02:54]} 6. b4 {[%clk 0:02:45]}  Bb6 {[%clk 0:02:54]} 7. Bb2 {[%clk 0:02:33]}  Nge7 {[%clk 0:02:42]} 8. Qd3 {[%clk 0:02:31]}  O-O {[%clk 0:02:37]} 9. Na4 {[%clk 0:02:15]}  Bd7 {[%clk 0:02:10]} 10. Nxb6 {[%clk 0:02:13]}  axb6 {[%clk 0:02:11]} 11. Ng3 {[%clk 0:02:08]}  Ng6 {[%clk 0:02:08]} 12. Be2 {[%clk 0:01:56]}  dxe4 {[%clk 0:02:06]} 13. Nxe4 {[%clk 0:01:50]}  e5 {[%clk 0:02:03]} 14. dxe5 {[%clk 0:01:38]}  Ncxe5 {[%clk 0:02:01]} 15. Qg3 {[%clk 0:01:37]}  Bc6 {[%clk 0:01:54]} 16. Rd1 {[%clk 0:01:20]}  Qe7 {[%clk 0:01:48]} 17. Nd2 {[%clk 0:01:19]}  Nd7 {[%clk 0:00:55]} 18. Nf1 {[%clk 0:01:07]}  f5 {[%clk 0:00:48]} 19. Qe3 {[%clk 0:01:07]}  Qf7 {[%clk 0:00:38]} 20. Qb3 {[%clk 0:00:53]}  Qxb3 {[%clk 0:00:27]} 21. cxb3 {[%clk 0:00:53]}  Rae8 {[%clk 0:00:20]} 22. Kd2 {[%clk 0:00:53]}  Bxg2 {[%clk 0:00:19]} 23. Rg1 {[%clk 0:00:53]}  Bd5 {[%clk 0:00:16]} 24. Rc1 {[%clk 0:00:54]}  c6 {[%clk 0:00:16]} 25. Ne3 {[%clk 0:00:54]}  Bxb3 {[%clk 0:00:14]} 26. h4 {[%clk 0:00:54]}  Nge5 {[%clk 0:00:11]} 27. f4 {[%clk 0:00:53]}  Ng4 {[%clk 0:00:10]} 28. Nxg4 {[%clk 0:00:52]}  fxg4 {[%clk 0:00:10]} 29. Rxg4 {[%clk 0:00:53]}  Nf6 {[%clk 0:00:10]} 30. Rg3 {[%clk 0:00:53]}  Rd8+ {[%clk 0:00:10]} 31. Ke1 {[%clk 0:00:46]}  Bd5 {[%clk 0:00:10]} 32. Kf1 {[%clk 0:00:38]}  Rf7 {[%clk 0:00:10]} 33. Kg1 {[%clk 0:00:37]}  Ne4 {[%clk 0:00:10]} 34. Rg2 {[%clk 0:00:33]}  Rdd7 {[%clk 0:00:10]} 35. Bh5 {[%clk 0:00:32]}  Rxf4 {[%clk 0:00:10]} 36. Rf1 {[%clk 0:00:18]}  Rxf1+ {[%clk 0:00:09]} 37. Kxf1 {[%clk 0:00:19]}  Re7 {[%clk 0:00:07]} 38. Kg1 {[%clk 0:00:15]}  g6 {[%clk 0:00:07]} 39. Bf3 {[%clk 0:00:14]}  Rd7 {[%clk 0:00:05]} 40. Re2 {[%clk 0:00:14]}  Ng3 {[%clk 0:00:04]} 41. Bxd5+ {[%clk 0:00:12]}  Rxd5 {[%clk 0:00:04]} 42. Re7 {[%clk 0:00:12]}  Rd2 {[%clk 0:00:03]} 43. Be5 {[%clk 0:00:11]}  Ne2+ {[%clk 0:00:03]} 44. Kf1 {[%clk 0:00:12]}  Nd4 {[%clk 0:00:03]} 45. Rg7+ {[%clk 0:00:11]}  Kf8 {[%clk 0:00:02]} 46. Rxh7 {[%clk 0:00:12]}  Nf3 {[%clk 0:00:02]} 47. Bf4 {[%clk 0:00:11]}  Rc2 {[%clk 0:00:02]} 48. Rxb7 {[%clk 0:00:11]}  b5 {[%clk 0:00:02]} 49. Bg3 {[%clk 0:00:09]}  Ra2 {[%clk 0:00:01]} 50. Rb6 {[%clk 0:00:09]}  Rxa3 {[%clk 0:00:01]} 51. Rxc6 {[%clk 0:00:09]}  Rb3 {[%clk 0:00:02]} 52. Rxg6 {[%clk 0:00:07]}  Rxb4 {[%clk 0:00:02]} 53. Rf6+ {[%clk 0:00:07]}  Kg7 {[%clk 0:00:02]} 54. Rxf3 {[%clk 0:00:08]}  Kh6 {[%clk 0:00:02]} 55. Kg2 {[%clk 0:00:08]}  Kh5 {[%clk 0:00:03]} 56. Kh3 {[%clk 0:00:09]}  Rb1 {[%clk 0:00:03]} 57. Rf5+ {[%clk 0:00:09]}  Kg6 {[%clk 0:00:03]} 58. Kg4 {[%clk 0:00:06]}  Rb4+ {[%clk 0:00:03]} 59. Rf4 {[%clk 0:00:06]}  Rb1 {[%clk 0:00:03]} 60. h5+ {[%clk 0:00:06]}  Kh6 {[%clk 0:00:03]} 61. Rf6+ {[%clk 0:00:07]}  Kg7 {[%clk 0:00:00]} 62. Rb6 {[%clk 0:00:07]} 1-0

[Event "December 12 Early 2023"]
[Site "https://www.chess.com"]
[Date "2023.12.12"]
[Round "1"]
[White "Shankland, Sam"]
[Black "Kukreja Sankalp"]
[Result "1-0"]
[Board "49"]
[TimeControl "180+1"]
[WhiteFideId "2004887"]
[BlackFideId "45027676"]
[WhiteElo "2872"]
[BlackElo "2488"]
[WhiteTeam "USA"]
[BlackTeam "IND"]
[WhiteClock "0:00:43"]
[BlackClock "0:00:03"]

1. d4 {[%clk 0:03:00]}  d5 {[%clk 0:02:58]} 2. c4 {[%clk 0:03:01]}  c6 {[%clk 0:02:59]} 3. Nc3 {[%clk 0:03:00]}  Nf6 {[%clk 0:02:59]} 4. e3 {[%clk 0:03:00]}  g6 {[%clk 0:02:56]} 5. Nf3 {[%clk 0:02:56]}  Bg7 {[%clk 0:02:56]} 6. Be2 {[%clk 0:02:53]}  dxc4 {[%clk 0:02:53]} 7. Bxc4 {[%clk 0:02:51]}  O-O {[%clk 0:02:53]} 8. O-O {[%clk 0:02:51]}  Bg4 {[%clk 0:02:53]} 9. Be2 {[%clk 0:02:51]}  Nbd7 {[%clk 0:02:48]} 10. e4 {[%clk 0:02:51]}  Bxf3 {[%clk 0:02:38]} 11. Bxf3 {[%clk 0:02:50]}  e5 {[%clk 0:02:39]} 12. d5 {[%clk 0:02:47]}  cxd5 {[%clk 0:02:39]} 13. Nxd5 {[%clk 0:02:46]}  Nc5 {[%clk 0:02:30]} 14. Be3 {[%clk 0:02:32]}  Ncxe4 {[%clk 0:02:09]} 15. Nxf6+ {[%clk 0:02:29]}  Nxf6 {[%clk 0:02:08]} 16. Bxb7 {[%clk 0:02:29]}  Rb8 {[%clk 0:02:05]} 17. Bc6 {[%clk 0:02:14]}  Rxb2 {[%clk 0:02:01]} 18. Qc1 {[%clk 0:02:07]}  Rb8 {[%clk 0:01:43]} 19. Bc5 {[%clk 0:01:57]}  Rc8 {[%clk 0:01:27]} 20. Bxf8 {[%clk 0:01:56]}  Bxf8 {[%clk 0:01:11]} 21. Qc4 {[%clk 0:01:55]}  Qd4 {[%clk 0:00:34]} 22. Rac1 {[%clk 0:01:46]}  Ba3 {[%clk 0:00:26]} 23. Rc2 {[%clk 0:01:46]}  Rd8 {[%clk 0:00:24]} 24. Ba4 {[%clk 0:01:29]}  Ne4 {[%clk 0:00:19]} 25. Bb3 {[%clk 0:01:25]}  Rd7 {[%clk 0:00:18]} 26. Qc8+ {[%clk 0:01:05]}  Kg7 {[%clk 0:00:18]} 27. Rc7 {[%clk 0:01:04]}  Rxc7 {[%clk 0:00:12]} 28. Qxc7 {[%clk 0:01:04]}  Nd6 {[%clk 0:00:13]} 29. Rd1 {[%clk 0:01:02]}  Qc5 {[%clk 0:00:11]} 30. Qxc5 {[%clk 0:01:02]}  Bxc5 {[%clk 0:00:12]} 31. Rd5 {[%clk 0:00:56]}  Ne4 {[%clk 0:00:11]} 32. Rd7 {[%clk 0:00:51]}  Bxf2+ {[%clk 0:00:08]} 33. Kf1 {[%clk 0:00:51]}  Bd4 {[%clk 0:00:08]} 34. Rxf7+ {[%clk 0:00:50]}  Kh6 {[%clk 0:00:07]} 35. Ke2 {[%clk 0:00:49]}  Nc5 {[%clk 0:00:07]} 36. h4 {[%clk 0:00:46]}  Nxb3 {[%clk 0:00:07]} 37. axb3 {[%clk 0:00:46]}  Bc3 {[%clk 0:00:05]} 38. g4 {[%clk 0:00:46]}  Bd4 {[%clk 0:00:05]} 39. Kf3 {[%clk 0:00:44]}  g5 {[%clk 0:00:05]} 40. h5 {[%clk 0:00:44]}  Bc3 {[%clk 0:00:04]} 41. Ke4 {[%clk 0:00:44]}  Bb2 {[%clk 0:00:04]} 42. Rxa7 {[%clk 0:00:44]}  Bd4 {[%clk 0:00:03]} 43. Rd7 {[%clk 0:00:43]} 1-0

[Event "December 12 Early 2023"]
[Site "https://www.chess.com"]
[Date "2023.12.12"]
[Round "1"]
[White "Kochiev, Ivan"]
[Black "Mikaelyan, Arman"]
[Result "0-1"]
[Board "52"]
[TimeControl "180+1"]
[WhiteFideId "2917890"]
[BlackFideId "13304852"]
[WhiteElo "2484"]
[BlackElo "2863"]
[WhiteTeam "BUL"]
[BlackTeam "ARM"]
[WhiteClock "0:00:04"]
[BlackClock "0:00:47"]

1. e4 {[%clk 0:03:00]}  e5 {[%clk 0:02:59]} 2. Nf3 {[%clk 0:03:01]}  Nc6 {[%clk 0:03:00]} 3. Bc4 {[%clk 0:03:01]}  Bc5 {[%clk 0:02:59]} 4. c3 {[%clk 0:02:59]}  d6 {[%clk 0:02:58]} 5. O-O {[%clk 0:02:57]}  Bb6 {[%clk 0:02:57]} 6. Re1 {[%clk 0:02:55]}  Nf6 {[%clk 0:02:57]} 7. d3 {[%clk 0:02:51]}  O-O {[%clk 0:02:56]} 8. h3 {[%clk 0:02:51]}  Ne7 {[%clk 0:02:53]} 9. Nbd2 {[%clk 0:02:49]}  Ng6 {[%clk 0:02:54]} 10. Nf1 {[%clk 0:02:49]}  Be6 {[%clk 0:02:40]} 11. Bb5 {[%clk 0:02:39]}  h6 {[%clk 0:02:27]} 12. Ng3 {[%clk 0:02:36]}  c6 {[%clk 0:02:19]} 13. Ba4 {[%clk 0:02:35]}  d5 {[%clk 0:02:20]} 14. exd5 {[%clk 0:02:21]}  Nxd5 {[%clk 0:02:21]} 15. d4 {[%clk 0:02:07]}  exd4 {[%clk 0:02:18]} 16. Nxd4 {[%clk 0:02:06]}  Qd6 {[%clk 0:01:24]} 17. Ne4 {[%clk 0:01:23]}  Qc7 {[%clk 0:01:22]} 18. Nxe6 {[%clk 0:01:15]}  fxe6 {[%clk 0:01:23]} 19. Qg4 {[%clk 0:01:15]}  Ne5 {[%clk 0:01:17]} 20. Qxe6+ {[%clk 0:01:10]}  Kh8 {[%clk 0:01:18]} 21. Be3 {[%clk 0:00:40]}  Nxe3 {[%clk 0:01:02]} 22. fxe3 {[%clk 0:00:40]}  Nd3 {[%clk 0:01:02]} 23. Re2 {[%clk 0:00:33]}  Nf4 {[%clk 0:01:02]} 24. Qg4 {[%clk 0:00:29]}  Rae8 {[%clk 0:00:58]} 25. Bc2 {[%clk 0:00:23]}  Nxe2+ {[%clk 0:00:55]} 26. Qxe2 {[%clk 0:00:23]}  Qe5 {[%clk 0:00:52]} 27. Re1 {[%clk 0:00:13]}  Re7 {[%clk 0:00:52]} 28. Qd3 {[%clk 0:00:13]}  Qd5 {[%clk 0:00:48]} 29. Nc5 {[%clk 0:00:05]}  Qxd3 {[%clk 0:00:47]} 30. Nxd3 {[%clk 0:00:06]}  Rxe3 {[%clk 0:00:47]} 31. Rxe3 {[%clk 0:00:06]}  Bxe3+ {[%clk 0:00:48]} 32. Kh2 {[%clk 0:00:04]}  Rf1 {[%clk 0:00:47]} 0-1

[Event "December 12 Early 2023"]
[Site "https://www.chess.com"]
[Date "2023.12.12"]
[Round "1"]
[White "Corrales Jimenez, Fidel"]
[Black "Iljin, Timofey"]
[Result "1-0"]
[Board "53"]
[TimeControl "180+1"]
[WhiteFideId "3506690"]
[BlackFideId "14110180"]
[WhiteElo "2859"]
[BlackElo "2483"]
[WhiteTeam "USA"]
[BlackTeam "UKR"]
[WhiteClock "0:00:08"]
[BlackClock "0:00:07"]

1. e4 {[%clk 0:02:03]}  e5 {[%clk 0:02:58]} 2. Nf3 {[%clk 0:02:03]}  Nc6 {[%clk 0:02:59]} 3. Bb5 {[%clk 0:02:03]}  a6 {[%clk 0:02:59]} 4. Bxc6 {[%clk 0:02:02]}  dxc6 {[%clk 0:02:56]} 5. Nc3 {[%clk 0:02:03]}  f6 {[%clk 0:02:55]} 6. d4 {[%clk 0:02:03]}  exd4 {[%clk 0:02:54]} 7. Nxd4 {[%clk 0:02:04]}  c5 {[%clk 0:02:54]} 8. Nde2 {[%clk 0:02:04]}  Qxd1+ {[%clk 0:02:55]} 9. Nxd1 {[%clk 0:02:05]}  Be6 {[%clk 0:02:50]} 10. Bf4 {[%clk 0:02:02]}  O-O-O {[%clk 0:02:50]} 11. Ne3 {[%clk 0:02:02]}  Ne7 {[%clk 0:02:46]} 12. h4 {[%clk 0:02:02]}  Ng6 {[%clk 0:02:45]} 13. Bg3 {[%clk 0:02:02]}  Ne5 {[%clk 0:02:34]} 14. a3 {[%clk 0:01:42]}  b6 {[%clk 0:02:25]} 15. Nf4 {[%clk 0:01:35]}  Bf7 {[%clk 0:02:23]} 16. Nfd5 {[%clk 0:01:35]}  Kb7 {[%clk 0:02:18]} 17. O-O-O {[%clk 0:01:29]}  c6 {[%clk 0:02:08]} 18. Nxf6 {[%clk 0:01:17]}  Nd3+ {[%clk 0:01:44]} 19. Rxd3 {[%clk 0:01:12]}  Rxd3 {[%clk 0:01:44]} 20. cxd3 {[%clk 0:01:06]}  gxf6 {[%clk 0:01:44]} 21. Bf4 {[%clk 0:00:58]}  b5 {[%clk 0:01:38]} 22. Nf5 {[%clk 0:00:47]}  a5 {[%clk 0:01:10]} 23. Nd6+ {[%clk 0:00:42]}  Bxd6 {[%clk 0:01:09]} 24. Bxd6 {[%clk 0:00:43]}  c4 {[%clk 0:01:06]} 25. dxc4 {[%clk 0:00:42]}  Bxc4 {[%clk 0:01:06]} 26. f3 {[%clk 0:00:39]}  h5 {[%clk 0:00:57]} 27. Be7 {[%clk 0:00:28]}  Rg8 {[%clk 0:00:56]} 28. Rg1 {[%clk 0:00:27]}  Be2 {[%clk 0:00:56]} 29. Bc5 {[%clk 0:00:22]}  b4 {[%clk 0:00:43]} 30. axb4 {[%clk 0:00:22]}  axb4 {[%clk 0:00:44]} 31. Kd2 {[%clk 0:00:22]}  Bb5 {[%clk 0:00:36]} 32. Bxb4 {[%clk 0:00:21]}  Rd8+ {[%clk 0:00:37]} 33. Ke3 {[%clk 0:00:22]}  Rg8 {[%clk 0:00:29]} 34. Kf4 {[%clk 0:00:20]}  Kc7 {[%clk 0:00:26]} 35. Bc3 {[%clk 0:00:20]}  Rf8 {[%clk 0:00:24]} 36. g4 {[%clk 0:00:19]}  hxg4 {[%clk 0:00:23]} 37. fxg4 {[%clk 0:00:19]}  c5 {[%clk 0:00:23]} 38. h5 {[%clk 0:00:20]}  Bd3 {[%clk 0:00:23]} 39. Rg3 {[%clk 0:00:19]}  Bb1 {[%clk 0:00:22]} 40. h6 {[%clk 0:00:18]}  Re8 {[%clk 0:00:22]} 41. Re3 {[%clk 0:00:16]}  Kd6 {[%clk 0:00:22]} 42. Bxf6 {[%clk 0:00:15]}  Ke6 {[%clk 0:00:23]} 43. g5 {[%clk 0:00:13]}  c4 {[%clk 0:00:17]} 44. h7 {[%clk 0:00:12]}  c3 {[%clk 0:00:18]} 45. bxc3 {[%clk 0:00:12]}  Bxe4 {[%clk 0:00:06]} 46. Rxe4+ {[%clk 0:00:11]}  Kf7 {[%clk 0:00:06]} 47. Rxe8 {[%clk 0:00:10]}  Kg6 {[%clk 0:00:07]} 48. h8=Q {[%clk 0:00:08]}  Kf7 {[%clk 0:00:07]} 49. Qg8# {[%clk 0:00:08]} 1-0

[Event "December 12 Early 2023"]
[Site "https://www.chess.com"]
[Date "2023.12.12"]
[Round "1"]
[White "Xu, Yi"]
[Black "Aalto, Patrik"]
[Result "1-0"]
[Board "55"]
[TimeControl "180+1"]
[WhiteFideId "8605564"]
[BlackFideId "510726"]
[WhiteElo "2851"]
[BlackElo "2477"]
[WhiteTeam "CHN"]
[BlackTeam "FIN"]
[WhiteClock "0:02:08"]
[BlackClock "0:00:25"]

1. e4 {[%clk 0:03:00]}  c5 {[%clk 0:02:59]} 2. Nf3 {[%clk 0:02:59]}  e6 {[%clk 0:02:59]} 3. d4 {[%clk 0:03:00]}  cxd4 {[%clk 0:03:00]} 4. Nxd4 {[%clk 0:03:00]}  Nc6 {[%clk 0:03:00]} 5. Nc3 {[%clk 0:03:01]}  Qc7 {[%clk 0:03:01]} 6. g3 {[%clk 0:03:01]}  a6 {[%clk 0:03:00]} 7. Bg2 {[%clk 0:03:00]}  Nf6 {[%clk 0:02:59]} 8. O-O {[%clk 0:02:59]}  Nxd4 {[%clk 0:02:55]} 9. Qxd4 {[%clk 0:02:58]}  Bc5 {[%clk 0:02:56]} 10. Bf4 {[%clk 0:02:59]}  d6 {[%clk 0:02:54]} 11. Qd2 {[%clk 0:02:57]}  h6 {[%clk 0:02:41]} 12. Rad1 {[%clk 0:02:57]}  e5 {[%clk 0:02:39]} 13. Be3 {[%clk 0:02:57]}  Bxe3 {[%clk 0:02:39]} 14. fxe3 {[%clk 0:02:57]}  Be6 {[%clk 0:02:38]} 15. Qxd6 {[%clk 0:02:57]}  Qxd6 {[%clk 0:02:37]} 16. Rxd6 {[%clk 0:02:56]}  Rd8 {[%clk 0:02:06]} 17. Rb6 {[%clk 0:02:53]}  Rd7 {[%clk 0:02:01]} 18. Nd5 {[%clk 0:02:50]}  Kd8 {[%clk 0:01:40]} 19. c4 {[%clk 0:02:42]}  Ne8 {[%clk 0:01:26]} 20. c5 {[%clk 0:02:24]}  Nc7 {[%clk 0:00:55]} 21. Rxb7 {[%clk 0:02:20]}  Kc8 {[%clk 0:00:25]} 22. c6 {[%clk 0:02:08]} 1-0

[Event "December 12 Early 2023"]
[Site "https://www.chess.com"]
[Date "2023.12.12"]
[Round "1"]
[White "Azali, Tannaz"]
[Black "Finek, Vaclav"]
[Result "1-0"]
[Board "56"]
[TimeControl "180+1"]
[WhiteFideId "12537721"]
[BlackFideId "23718293"]
[WhiteElo "2474"]
[BlackElo "2850"]
[WhiteTeam "IRI"]
[BlackTeam "CZE"]
[WhiteClock "0:01:11"]
[BlackClock "0:00:27"]

1. e4 {[%clk 0:03:00]}  c5 {[%clk 0:02:58]} 2. Nc3 {[%clk 0:03:00]}  Nc6 {[%clk 0:02:58]} 3. Bb5 {[%clk 0:03:01]}  Nd4 {[%clk 0:02:57]} 4. Nf3 {[%clk 0:03:01]}  a6 {[%clk 0:02:57]} 5. Bd3 {[%clk 0:02:51]}  e6 {[%clk 0:02:54]} 6. O-O {[%clk 0:02:48]}  Nc6 {[%clk 0:02:51]} 7. b3 {[%clk 0:02:41]}  g6 {[%clk 0:02:47]} 8. Bb2 {[%clk 0:02:41]}  Bg7 {[%clk 0:02:47]} 9. Re1 {[%clk 0:02:40]}  d6 {[%clk 0:02:47]} 10. Bf1 {[%clk 0:02:39]}  Nge7 {[%clk 0:02:46]} 11. Na4 {[%clk 0:02:35]}  e5 {[%clk 0:02:44]} 12. Nc3 {[%clk 0:02:29]}  O-O {[%clk 0:02:43]} 13. a4 {[%clk 0:02:29]}  Nd4 {[%clk 0:02:42]} 14. h3 {[%clk 0:02:26]}  Be6 {[%clk 0:02:34]} 15. Ng5 {[%clk 0:02:20]}  Bd7 {[%clk 0:02:23]} 16. a5 {[%clk 0:02:08]}  Nec6 {[%clk 0:02:21]} 17. Nf3 {[%clk 0:02:00]}  Nxa5 {[%clk 0:02:14]} 18. Nd5 {[%clk 0:02:00]}  Nac6 {[%clk 0:02:08]} 19. c3 {[%clk 0:02:01]}  Nxf3+ {[%clk 0:02:04]} 20. Qxf3 {[%clk 0:02:02]}  Be6 {[%clk 0:02:05]} 21. Rad1 {[%clk 0:01:53]}  Ne7 {[%clk 0:01:56]} 22. d4 {[%clk 0:01:51]}  cxd4 {[%clk 0:01:49]} 23. cxd4 {[%clk 0:01:51]}  Bxd5 {[%clk 0:01:34]} 24. exd5 {[%clk 0:01:51]}  exd4 {[%clk 0:01:33]} 25. Bxd4 {[%clk 0:01:51]}  Bxd4 {[%clk 0:01:29]} 26. Rxd4 {[%clk 0:01:52]}  Nf5 {[%clk 0:01:28]} 27. Rf4 {[%clk 0:01:50]}  Qg5 {[%clk 0:01:20]} 28. Rg4 {[%clk 0:01:39]}  Qh5 {[%clk 0:01:01]} 29. Qf4 {[%clk 0:01:30]}  Kg7 {[%clk 0:00:50]} 30. Bd3 {[%clk 0:01:28]}  Rae8 {[%clk 0:00:34]} 31. Rxe8 {[%clk 0:01:25]}  Rxe8 {[%clk 0:00:35]} 32. Bxf5 {[%clk 0:01:19]}  Re1+ {[%clk 0:00:34]} 33. Kh2 {[%clk 0:01:20]}  Re5 {[%clk 0:00:35]} 34. Bd3 {[%clk 0:01:11]}  Rxd5 {[%clk 0:00:34]} 35. Bc4 {[%clk 0:01:12]}  Re5 {[%clk 0:00:33]} 36. Qxf7+ {[%clk 0:01:11]}  Kh6 {[%clk 0:00:27]} 37. Qf8# {[%clk 0:01:11]} 1-0

[Event "December 12 Early 2023"]
[Site "https://www.chess.com"]
[Date "2023.12.12"]
[Round "1"]
[White "Bocharov, Dmitry"]
[Black "Senft, Sean"]
[Result "1-0"]
[Board "57"]
[TimeControl "180+1"]
[WhiteFideId "4138716"]
[BlackFideId "2044960"]
[WhiteElo "2849"]
[BlackElo "2473"]
[WhiteTeam "RUS"]
[BlackTeam "USA"]
[WhiteClock "0:00:39"]
[BlackClock "0:00:08"]

1. c4 {[%clk 0:03:00]}  c6 {[%clk 0:02:59]} 2. Nf3 {[%clk 0:02:58]}  d5 {[%clk 0:03:00]} 3. g3 {[%clk 0:02:53]}  Nf6 {[%clk 0:03:01]} 4. Bg2 {[%clk 0:02:53]}  Bg4 {[%clk 0:03:01]} 5. Ne5 {[%clk 0:02:50]}  Bf5 {[%clk 0:03:01]} 6. cxd5 {[%clk 0:02:49]}  cxd5 {[%clk 0:03:01]} 7. Qa4+ {[%clk 0:02:49]}  Nbd7 {[%clk 0:02:57]} 8. Nc3 {[%clk 0:02:48]}  e6 {[%clk 0:02:57]} 9. g4 {[%clk 0:02:48]}  Bg6 {[%clk 0:02:51]} 10. h4 {[%clk 0:02:48]}  Bd6 {[%clk 0:02:52]} 11. Nxd7 {[%clk 0:02:43]}  Qxd7 {[%clk 0:02:52]} 12. Qxd7+ {[%clk 0:02:28]}  Kxd7 {[%clk 0:02:49]} 13. h5 {[%clk 0:02:23]}  Bc2 {[%clk 0:02:47]} 14. d3 {[%clk 0:02:16]}  d4 {[%clk 0:02:43]} 15. Kd2 {[%clk 0:02:17]}  dxc3+ {[%clk 0:02:41]} 16. Kxc2 {[%clk 0:02:15]}  cxb2 {[%clk 0:02:41]} 17. Bxb2 {[%clk 0:02:16]}  Nxg4 {[%clk 0:02:38]} 18. Rhg1 {[%clk 0:01:48]}  Rac8+ {[%clk 0:02:25]} 19. Kb3 {[%clk 0:01:47]}  f5 {[%clk 0:01:59]} 20. Bf3 {[%clk 0:01:43]}  Rc5 {[%clk 0:01:36]} 21. a4 {[%clk 0:01:42]}  Rg8 {[%clk 0:01:20]} 22. Bd4 {[%clk 0:01:35]}  Rc7 {[%clk 0:01:13]} 23. Bxg4 {[%clk 0:01:33]}  fxg4 {[%clk 0:01:12]} 24. Rxg4 {[%clk 0:01:33]}  e5 {[%clk 0:01:07]} 25. Bxa7 {[%clk 0:01:31]}  b5 {[%clk 0:01:06]} 26. Be3 {[%clk 0:01:29]}  bxa4+ {[%clk 0:01:01]} 27. Raxa4 {[%clk 0:01:20]}  Rb8+ {[%clk 0:01:00]} 28. Ka2 {[%clk 0:01:20]}  Rc2+ {[%clk 0:00:57]} 29. Ka1 {[%clk 0:01:20]}  Rxe2 {[%clk 0:00:49]} 30. Rxg7+ {[%clk 0:01:18]}  Ke6 {[%clk 0:00:48]} 31. Rg1 {[%clk 0:01:08]}  Bb4 {[%clk 0:00:37]} 32. Ra6+ {[%clk 0:01:00]}  Kd5 {[%clk 0:00:35]} 33. Rc1 {[%clk 0:01:00]}  e4 {[%clk 0:00:16]} 34. d4 {[%clk 0:00:53]}  Bd6 {[%clk 0:00:13]} 35. Rxd6+ {[%clk 0:00:49]}  Kxd6 {[%clk 0:00:13]} 36. Bf4+ {[%clk 0:00:49]}  Kd5 {[%clk 0:00:13]} 37. Bxb8 {[%clk 0:00:49]}  Rxf2 {[%clk 0:00:14]} 38. Re1 {[%clk 0:00:40]}  Rh2 {[%clk 0:00:08]} 39. Bxh2 {[%clk 0:00:39]} 1-0

[Event "December 12 Early 2023"]
[Site "https://www.chess.com"]
[Date "2023.12.12"]
[Round "1"]
[White "Bacrot, Etienne"]
[Black "Goncalves, Davi Sulzbacher"]
[Result "1-0"]
[Board "59"]
[TimeControl "180+1"]
[WhiteFideId "605506"]
[BlackFideId "2154510"]
[WhiteElo "2842"]
[BlackElo "2471"]
[WhiteTeam "FRA"]
[BlackTeam "BRA"]
[WhiteClock "0:00:23"]
[BlackClock "0:00:01"]

1. e4 {[%clk 0:02:59]}  c5 {[%clk 0:02:59]} 2. Nf3 {[%clk 0:02:59]}  Nc6 {[%clk 0:03:00]} 3. Bb5 {[%clk 0:02:59]}  g6 {[%clk 0:02:59]} 4. O-O {[%clk 0:02:58]}  Bg7 {[%clk 0:03:00]} 5. c3 {[%clk 0:02:58]}  Nf6 {[%clk 0:03:00]} 6. e5 {[%clk 0:02:58]}  Nd5 {[%clk 0:02:59]} 7. d4 {[%clk 0:02:56]}  cxd4 {[%clk 0:02:56]} 8. cxd4 {[%clk 0:02:56]}  O-O {[%clk 0:02:56]} 9. Nc3 {[%clk 0:02:56]}  Nxc3 {[%clk 0:02:53]} 10. bxc3 {[%clk 0:02:56]}  d6 {[%clk 0:02:54]} 11. Bxc6 {[%clk 0:02:49]}  bxc6 {[%clk 0:02:55]} 12. Bf4 {[%clk 0:02:48]}  Bg4 {[%clk 0:02:44]} 13. Re1 {[%clk 0:02:46]}  dxe5 {[%clk 0:02:22]} 14. Bxe5 {[%clk 0:02:44]}  Qd5 {[%clk 0:02:22]} 15. Bxg7 {[%clk 0:02:41]}  Bxf3 {[%clk 0:02:19]} 16. Qxf3 {[%clk 0:02:41]}  Qxf3 {[%clk 0:02:18]} 17. gxf3 {[%clk 0:02:41]}  Kxg7 {[%clk 0:02:19]} 18. Rxe7 {[%clk 0:02:40]}  c5 {[%clk 0:02:15]} 19. d5 {[%clk 0:02:25]}  c4 {[%clk 0:02:15]} 20. Rb1 {[%clk 0:02:20]}  Rab8 {[%clk 0:01:49]} 21. Rxb8 {[%clk 0:01:30]}  Rxb8 {[%clk 0:01:50]} 22. Rxa7 {[%clk 0:01:30]}  Rb1+ {[%clk 0:01:50]} 23. Kg2 {[%clk 0:01:31]}  Rc1 {[%clk 0:01:51]} 24. Ra3 {[%clk 0:01:29]}  Kf6 {[%clk 0:01:48]} 25. f4 {[%clk 0:01:28]}  Ke7 {[%clk 0:01:46]} 26. Kf3 {[%clk 0:01:28]}  Kd6 {[%clk 0:01:46]} 27. Ke4 {[%clk 0:01:28]}  Rd1 {[%clk 0:01:42]} 28. Ra6+ {[%clk 0:01:22]}  Ke7 {[%clk 0:01:09]} 29. Rc6 {[%clk 0:01:11]}  Ra1 {[%clk 0:00:50]} 30. Rxc4 {[%clk 0:01:08]}  Rxa2 {[%clk 0:00:50]} 31. Rc7+ {[%clk 0:01:07]}  Kd6 {[%clk 0:00:37]} 32. Rc6+ {[%clk 0:01:03]}  Ke7 {[%clk 0:00:36]} 33. Ke3 {[%clk 0:01:02]}  Ra3 {[%clk 0:00:32]} 34. h4 {[%clk 0:00:46]}  h5 {[%clk 0:00:31]} 35. f3 {[%clk 0:00:45]}  Kd7 {[%clk 0:00:28]} 36. Ke4 {[%clk 0:00:43]}  Ra1 {[%clk 0:00:10]} 37. f5 {[%clk 0:00:40]}  Rh1 {[%clk 0:00:09]} 38. fxg6 {[%clk 0:00:39]}  Rxh4+ {[%clk 0:00:08]} 39. f4 {[%clk 0:00:40]}  fxg6 {[%clk 0:00:07]} 40. Rxg6 {[%clk 0:00:40]}  Rh1 {[%clk 0:00:07]} 41. c4 {[%clk 0:00:30]}  h4 {[%clk 0:00:03]} 42. c5 {[%clk 0:00:28]}  h3 {[%clk 0:00:04]} 43. Rg7+ {[%clk 0:00:28]}  Ke8 {[%clk 0:00:02]} 44. Rh7 {[%clk 0:00:28]}  h2 {[%clk 0:00:02]} 45. Kf5 {[%clk 0:00:28]}  Kd8 {[%clk 0:00:02]} 46. c6 {[%clk 0:00:25]}  Rd1 {[%clk 0:00:02]} 47. Rxh2 {[%clk 0:00:24]}  Rxd5+ {[%clk 0:00:03]} 48. Ke6 {[%clk 0:00:24]}  Rc5 {[%clk 0:00:03]} 49. Kd6 {[%clk 0:00:23]}  Rf5 {[%clk 0:00:01]} 50. Rh8+ {[%clk 0:00:23]} 1-0